fUST/lending_fUST_20260623
["ID","MTS","AMOUNT","RATE_DAILY","PERIOD"]
[426152498,1782183039000,-520.94267376,0.00016438,2]
[426152500,1782183039000,-500.0,0.00016438,2]
[426152499,1782183039000,-500.0,0.00016438,2]
[426152517,1782183039000,-500.0,0.00016438,2]
[426152501,1782183039000,-500.0,0.00016438,2]
[426152546,1782183039000,-513.49275101,0.00016438,2]
[426152506,1782183039000,-508.73504059,0.00016438,2]
[426152502,1782183039000,-503.17084423,0.00016438,2]
[426152504,1782183039000,-500.0,0.00016438,2]
[426152507,1782183039000,-500.0,0.00016438,2]
[426152508,1782183039000,-500.0,0.00016438,2]
[426152509,1782183039000,-500.0,0.00016438,2]
[426152510,1782183039000,-500.0,0.00016438,2]
[426152512,1782183039000,-500.0,0.00016438,2]
[426152511,1782183039000,-500.0,0.00016438,2]
[426152514,1782183039000,-500.0,0.00016438,2]
[426152513,1782183039000,-500.0,0.00016438,2]
[426152515,1782183039000,-500.0,0.00016438,2]
[426152503,1782183039000,-500.0,0.00016438,2]
[426152547,1782183039000,-648.93650579,0.00016438,2]
[426152537,1782183039000,-500.0,0.00016438,2]
[426152551,1782183039000,-500.0,0.00016438,2]
[426152582,1782183039000,-157.70609904,0.00016712,2]
[426152585,1782183039000,-409.10112593,0.00016712,2]
[426152586,1782183039000,-512.4625069,0.00016712,2]
[426152584,1782183039000,-500.0,0.00016712,2]
[426152587,1782183039000,-500.0,0.00016712,2]
[426152589,1782183039000,-500.0,0.00016712,2]
[426152588,1782183039000,-500.0,0.00016712,2]
[426152590,1782183039000,-500.0,0.00016712,2]
[426152592,1782183039000,-500.0,0.00016712,2]
[426152591,1782183039000,-500.0,0.00016712,2]
[426152593,1782183039000,-500.0,0.00016712,2]
[426152595,1782183039000,-500.0,0.00016712,2]
[426152597,1782183039000,-153.24264219,0.00016712,2]
[426152600,1782183039000,-500.0,0.00016712,2]
[426152598,1782183039000,-522.34380859,0.00016712,2]
[426152599,1782183039000,-500.0,0.00016712,2]
[426152602,1782183039000,-500.0,0.00016712,2]
[426152601,1782183039000,-511.74057845,0.00016712,2]
[426152605,1782183039000,-500.0,0.00016712,2]
[426152607,1782183039000,-500.0,0.00016712,2]
[426152606,1782183039000,-500.0,0.00016712,2]
[426152603,1782183039000,-183.89365696,0.00016712,2]
[426152604,1782183039000,-500.0,0.00016712,2]
[426152609,1782183039000,-500.0,0.00016712,2]
[426152608,1782183039000,-500.0,0.00016712,2]
[426152549,1782183039000,-505.70948279,0.00016438,2]
[426152610,1782183039000,-500.0,0.00016712,2]
[426152583,1782183039000,-500.0,0.00016712,2]
[426152580,1782183039000,-500.0,0.00016712,2]
[426152611,1782183039000,-599.72556918,0.00016712,2]
[426152579,1782183039000,-500.0,0.00016712,2]
[426152581,1782183039000,-500.0,0.00016712,2]
[426152550,1782183039000,-500.0,0.00016438,2]
[426152552,1782183039000,-500.0,0.00016438,2]
[426152553,1782183039000,-500.0,0.00016438,2]
[426152554,1782183039000,-500.0,0.00016438,2]
[426152555,1782183039000,-500.0,0.00016438,2]
[426152556,1782183039000,-500.0,0.00016438,2]
[426152557,1782183039000,-500.0,0.00016438,2]
[426152559,1782183039000,-500.0,0.00016438,2]
[426152558,1782183039000,-500.0,0.00016438,2]
[426152561,1782183039000,-500.0,0.00016438,2]
[426152562,1782183039000,-500.0,0.00016438,2]
[426152560,1782183039000,-500.0,0.00016438,2]
[426152564,1782183039000,-500.0,0.00016438,2]
[426152594,1782183039000,-500.0,0.00016712,2]
[426152565,1782183039000,-500.0,0.00016438,2]
[426152563,1782183039000,-1000.0,0.00016438,2]
[426152575,1782183039000,-513.13562801,0.00016712,2]
[426152576,1782183039000,-521.95801968,0.00016712,2]
[426152571,1782183039000,-506.30289313,0.00016712,2]
[426152569,1782183039000,-500.0,0.00016711,2]
[426152574,1782183039000,-517.47550557,0.00016712,2]
[426152577,1782183039000,-601.12381775,0.00016712,2]
[426152573,1782183039000,-505.62194096,0.00016712,2]
[426152567,1782183039000,-500.0,0.00016438,2]
[426152572,1782183039000,-500.0,0.00016712,2]
[426152578,1782183039000,-522.05699651,0.00016712,2]
[426152568,1782183039000,-500.0,0.00016711,2]
[426152570,1782183039000,-521.48793923,0.00016712,2]
[426152566,1782183039000,-258.7324752,0.00016438,2]
[426152700,1782183040000,-500.0,0.00016986,2]
[426152708,1782183040000,-500.0,0.00016986,2]
[426152702,1782183040000,-500.0,0.00016986,2]
[426152705,1782183040000,-500.0,0.00016986,2]
[426152704,1782183040000,-1289.17,0.00016986,2]
[426152706,1782183040000,-500.0,0.00016986,2]
[426152703,1782183040000,-500.0,0.00016986,2]
[426152699,1782183040000,-500.0,0.00016986,2]
[426152701,1782183040000,-244.33781567,0.00016986,2]
[426152698,1782183040000,-520.35378086,0.00016986,2]
[426152709,1782183040000,-500.0,0.00016986,2]
[426152692,1782183040000,-521.72172266,0.00016986,2]
[426152697,1782183040000,-500.0,0.00016986,2]
[426152695,1782183040000,-758.07,0.00016986,2]
[426152694,1782183040000,-500.0,0.00016986,2]
[426152693,1782183040000,-155.50611768,0.00016986,2]
[426152707,1782183040000,-500.0,0.00016986,2]
[426152691,1782183040000,-358.02334571,0.00016986,2]
[426152689,1782183040000,-527.34359296,0.00016986,2]
[426152690,1782183040000,-347.14538517,0.00016986,2]
[426152688,1782183040000,-527.67921114,0.00016986,2]
[426152685,1782183040000,-505.12299199,0.00016986,2]
[426152686,1782183040000,-527.01996725,0.00016986,2]
[426152683,1782183040000,-521.83960189,0.00016986,2]
[426152696,1782183040000,-500.0,0.00016986,2]
[426152711,1782183040000,-500.0,0.00016986,2]
[426152718,1782183040000,-500.0,0.00016986,2]
[426152713,1782183040000,-500.0,0.00016986,2]
[426152684,1782183040000,-548.25528458,0.00016986,2]
[426152737,1782183040000,-500.0,0.0001726,2]
[426152738,1782183040000,-500.0,0.0001726,2]
[426152736,1782183040000,-500.0,0.0001726,2]
[426152735,1782183040000,-500.0,0.0001726,2]
[426152734,1782183040000,-758.07,0.0001726,2]
[426152733,1782183040000,-500.0,0.0001726,2]
[426152732,1782183040000,-500.0,0.0001726,2]
[426152731,1782183040000,-500.0,0.0001726,2]
[426152729,1782183040000,-500.0,0.0001726,2]
[426152730,1782183040000,-500.0,0.0001726,2]
[426152728,1782183040000,-505.45191983,0.0001726,2]
[426152727,1782183040000,-319.61227189,0.0001726,2]
[426152725,1782183040000,-500.0,0.00017259,2]
[426152723,1782183040000,-500.0,0.00016986,2]
[426152726,1782183040000,-500.0,0.0001726,2]
[426152721,1782183040000,-500.0,0.00016986,2]
[426152716,1782183040000,-500.0,0.00016986,2]
[426152722,1782183040000,-520.41161373,0.00016986,2]
[426152719,1782183040000,-500.0,0.00016986,2]
[426152720,1782183040000,-500.0,0.00016986,2]
[426152717,1782183040000,-537.71015956,0.00016986,2]
[426152712,1782183040000,-500.0,0.00016986,2]
[426152714,1782183040000,-500.0,0.00016986,2]
[426152710,1782183040000,-500.0,0.00016986,2]
[426152715,1782183040000,-500.0,0.00016986,2]
[426152724,1782183040000,-205.2331217,0.00016986,2]
[426152687,1782183040000,-500.0,0.00016986,2]
[426152682,1782183040000,-511.28585056,0.00016986,2]
[426152631,1782183040000,-500.0,0.00016712,2]
[426152628,1782183040000,-500.0,0.00016712,2]
[426152633,1782183040000,-500.0,0.00016712,2]
[426152632,1782183040000,-500.0,0.00016712,2]
[426152637,1782183040000,-518.54930712,0.00016712,2]
[426152635,1782183040000,-529.00987931,0.00016712,2]
[426152630,1782183040000,-509.78386756,0.00016712,2]
[426152634,1782183040000,-500.0,0.00016712,2]
[426152638,1782183040000,-500.0,0.00016712,2]
[426152641,1782183040000,-517.41163552,0.00016712,2]
[426152639,1782183040000,-500.0,0.00016712,2]
[426152640,1782183040000,-500.0,0.00016712,2]
[426152644,1782183040000,-500.0,0.00016712,2]
[426152642,1782183040000,-514.15799142,0.00016712,2]
[426152636,1782183040000,-500.0,0.00016712,2]
[426152643,1782183040000,-508.47656714,0.00016712,2]
[426152629,1782183040000,-1289.17,0.00016712,2]
[426152627,1782183040000,-500.0,0.00016712,2]
[426152681,1782183040000,-268.64123711,0.00016986,2]
[426152614,1782183040000,-500.0,0.00016712,2]
[426152612,1782183040000,-500.0,0.00016712,2]
[426152613,1782183040000,-500.0,0.00016712,2]
[426152616,1782183040000,-500.0,0.00016712,2]
[426152615,1782183040000,-500.0,0.00016712,2]
[426152626,1782183040000,-505.10682062,0.00016712,2]
[426152617,1782183040000,-528.0025726,0.00016712,2]
[426152621,1782183040000,-500.0,0.00016712,2]
[426152620,1782183040000,-500.0,0.00016712,2]
[426152624,1782183040000,-500.0,0.00016712,2]
[426152623,1782183040000,-500.0,0.00016712,2]
[426152622,1782183040000,-500.0,0.00016712,2]
[426152625,1782183040000,-500.0,0.00016712,2]
[426152619,1782183040000,-519.85606646,0.00016712,2]
[426152645,1782183040000,-513.25591169,0.00016712,2]
[426152618,1782183040000,-758.07,0.00016712,2]
[426152646,1782183040000,-500.0,0.00016712,2]
[426152668,1782183040000,-500.0,0.00016986,2]
[426152664,1782183040000,-500.0,0.00016985,2]
[426152666,1782183040000,-500.0,0.00016986,2]
[426152671,1782183040000,-512.64872598,0.00016986,2]
[426152670,1782183040000,-500.0,0.00016986,2]
[426152672,1782183040000,-500.0,0.00016986,2]
[426152667,1782183040000,-518.42398571,0.00016986,2]
[426152674,1782183040000,-500.0,0.00016986,2]
[426152673,1782183040000,-522.17792318,0.00016986,2]
[426152679,1782183040000,-565.75836751,0.00016986,2]
[426152676,1782183040000,-506.80643693,0.00016986,2]
[426152678,1782183040000,-522.86020918,0.00016986,2]
[426152680,1782183040000,-516.86091092,0.00016986,2]
[426152647,1782183040000,-500.0,0.00016712,2]
[426152675,1782183040000,-517.7730261,0.00016986,2]
[426152669,1782183040000,-500.0,0.00016986,2]
[426152677,1782183040000,-504.69727329,0.00016986,2]
[426152663,1782183040000,-500.0,0.00016985,2]
[426152665,1782183040000,-525.06332228,0.00016986,2]
[426152648,1782183040000,-507.27073882,0.00016712,2]
[426152649,1782183040000,-500.0,0.00016712,2]
[426152650,1782183040000,-500.0,0.00016712,2]
[426152653,1782183040000,-500.0,0.00016712,2]
[426152652,1782183040000,-500.0,0.00016712,2]
[426152655,1782183040000,-500.0,0.00016712,2]
[426152651,1782183040000,-512.64701036,0.00016712,2]
[426152658,1782183040000,-500.0,0.00016712,2]
[426152656,1782183040000,-500.0,0.00016712,2]
[426152657,1782183040000,-1005.54906636,0.00016712,2]
[426152660,1782183040000,-500.0,0.00016712,2]
[426152659,1782183040000,-500.0,0.00016712,2]
[426152661,1782183040000,-600.0,0.00016765,2]
[426152654,1782183040000,-500.0,0.00016712,2]
[426152662,1782183040000,-1942.00045673,0.00016932,2]
[426152769,1782183041000,-609.74246768,0.00017534,2]
[426152781,1782183041000,-540.38766257,0.00017808,2]
[426152777,1782183041000,-623.31164517,0.00017534,2]
[426152778,1782183041000,-500.0,0.00017534,2]
[426152773,1782183041000,-500.0,0.00017534,2]
[426152772,1782183041000,-500.0,0.00017534,2]
[426152775,1782183041000,-500.0,0.00017534,2]
[426152774,1782183041000,-500.0,0.00017534,2]
[426152767,1782183041000,-150.15903735,0.00017534,2]
[426152771,1782183041000,-500.0,0.00017534,2]
[426152776,1782183041000,-500.0,0.00017534,2]
[426152779,1782183041000,-500.0,0.00017808,2]
[426152788,1782183041000,-500.0,0.00017808,2]
[426152780,1782183041000,-222.67371082,0.00017808,2]
[426152783,1782183041000,-551.04647314,0.00017808,2]
[426152786,1782183041000,-500.0,0.00017808,2]
[426152787,1782183041000,-500.0,0.00017808,2]
[426152785,1782183041000,-1289.17,0.00017808,2]
[426152784,1782183041000,-758.07,0.00017808,2]
[426152789,1782183041000,-521.30404425,0.00017808,2]
[426152792,1782183041000,-512.18428362,0.00018082,2]
[426152791,1782183041000,-500.0,0.00018082,2]
[426152790,1782183041000,-500.0,0.00018081,2]
[426152768,1782183041000,-540.13069334,0.00017534,2]
[426152793,1782183041000,-758.07,0.00018082,2]
[426152782,1782183041000,-500.0,0.00017808,2]
[426152766,1782183041000,-500.0,0.00017534,2]
[426152749,1782183041000,-519.36887016,0.0001726,2]
[426152764,1782183041000,-500.0,0.00017534,2]
[426152795,1782183041000,-500.0,0.00018082,2]
[426152741,1782183041000,-1289.17,0.0001726,2]
[426152739,1782183041000,-300.31187414,0.0001726,2]
[426152740,1782183041000,-496.00928704,0.0001726,2]
[426152743,1782183041000,-500.0,0.0001726,2]
[426152742,1782183041000,-416.53604163,0.0001726,2]
[426152744,1782183041000,-500.0,0.0001726,2]
[426152745,1782183041000,-500.0,0.0001726,2]
[426152747,1782183041000,-500.0,0.0001726,2]
[426152746,1782183041000,-500.0,0.0001726,2]
[426152748,1782183041000,-500.0,0.0001726,2]
[426152750,1782183041000,-500.0,0.0001726,2]
[426152770,1782183041000,-1289.17,0.00017534,2]
[426152752,1782183041000,-511.13351745,0.0001726,2]
[426152753,1782183041000,-500.0,0.0001726,2]
[426152754,1782183041000,-500.0,0.0001726,2]
[426152755,1782183041000,-500.0,0.0001726,2]
[426152757,1782183041000,-500.0,0.0001726,2]
[426152760,1782183041000,-234.99585616,0.00017534,2]
[426152758,1782183041000,-244.46151433,0.0001726,2]
[426152756,1782183041000,-500.0,0.0001726,2]
[426152759,1782183041000,-500.0,0.00017534,2]
[426152761,1782183041000,-500.0,0.00017534,2]
[426152763,1782183041000,-500.0,0.00017534,2]
[426152765,1782183041000,-758.07,0.00017534,2]
[426152762,1782183041000,-500.0,0.00017534,2]
[426152751,1782183041000,-175.62,0.0001726,2]
[426152794,1782183041000,-1289.17,0.00018082,2]
[426152803,1782183041000,-758.07,0.0001863,2]
[426152798,1782183041000,-1289.17,0.00018356,2]
[426152827,1782183041000,-252.590178,0.00019452,2]
[426152828,1782183041000,-758.07,0.00019452,2]
[426152830,1782183041000,-674.7239342,0.00019452,2]
[426152831,1782183041000,-380.09604818,0.00019465,2]
[426152832,1782183041000,-174.68165905,0.00019466,2]
[426152836,1782183041000,-443.34982439,0.00019468,2]
[426152835,1782183041000,-181.42256675,0.00019466,2]
[426152834,1782183041000,-126.51662318,0.00019466,2]
[426152833,1782183041000,-40.38525943,0.00019466,2]
[426152838,1782183041000,-354.41406752,0.00019468,2]
[426152837,1782183041000,-231.67715807,0.00019468,2]
[426152840,1782183041000,-164.28075454,0.00019468,2]
[426152829,1782183041000,-614.4460658,0.00019452,2]
[426152839,1782183041000,-383.10633383,0.00019468,2]
[426152843,1782183041000,-153.92309959,0.00019468,2]
[426152842,1782183041000,-177.33116337,0.00019468,2]
[426152844,1782183041000,-165.00531683,0.00019468,2]
[426152846,1782183041000,-314.05532893,0.00019468,2]
[426152847,1782183041000,-330.2601595,0.00019468,2]
[426152850,1782183041000,-238.03087427,0.00019468,2]
[426152845,1782183041000,-372.68878088,0.00019468,2]
[426152849,1782183041000,-151.87021699,0.00019468,2]
[426152796,1782183041000,-500.0,0.00018356,2]
[426152851,1782183041000,-196.35033646,0.00019468,2]
[426152852,1782183041000,-164.88522027,0.00019468,2]
[426152853,1782183041000,-184.97266667,0.00019468,2]
[426152841,1782183041000,-176.62815338,0.00019468,2]
[426152826,1782183041000,-252.590178,0.00019452,2]
[426152848,1782183041000,-323.43145887,0.00019468,2]
[426152823,1782183041000,-274.014857,0.00019178,2]
[426152825,1782183041000,-252.590178,0.00019452,2]
[426152799,1782183041000,-500.0,0.00018356,2]
[426152797,1782183041000,-758.07,0.00018356,2]
[426152801,1782183041000,-378.54279536,0.00018542,2]
[426152805,1782183041000,-500.0,0.0001863,2]
[426152806,1782183041000,-190.04802409,0.00018686,2]
[426152807,1782183041000,-177.20703376,0.0001869,2]
[426152804,1782183041000,-1289.17,0.0001863,2]
[426152802,1782183041000,-525.21191329,0.0001863,2]
[426152808,1782183041000,-191.55316691,0.0001869,2]
[426152809,1782183041000,-186.34439044,0.0001869,2]
[426152813,1782183041000,-656.61946376,0.0001869,2]
[426152800,1782183041000,-720.0,0.00018441,2]
[426152810,1782183041000,-157.02766446,0.0001869,2]
[426152812,1782183041000,-165.13007975,0.0001869,2]
[426152822,1782183041000,-274.014857,0.00019178,2]
[426152821,1782183041000,-274.014857,0.00019178,2]
[426152820,1782183041000,-274.014857,0.00019178,2]
[426152819,1782183041000,-1289.17,0.00019178,2]
[426152818,1782183041000,-758.07,0.00019178,2]
[426152824,1782183041000,-252.590178,0.00019452,2]
[426152815,1782183041000,-1289.17,0.00018904,2]
[426152814,1782183041000,-758.07,0.00018904,2]
[426152816,1782183041000,-344.22436912,0.00018904,2]
[426152811,1782183041000,-161.71572944,0.0001869,2]
[426152817,1782183041000,-300.0,0.00019178,2]
[426152884,1782183042000,-471.08299339,0.00019988,2]
[426152891,1782183042000,-226.20564824,0.00019988,2]
[426152883,1782183042000,-559.03317131,0.00019988,2]
[426152887,1782183042000,-232.92480736,0.00019988,2]
[426152886,1782183042000,-485.14718831,0.00019988,2]
[426152885,1782183042000,-495.39023925,0.00019988,2]
[426152888,1782183042000,-303.74043397,0.00019988,2]
[426152889,1782183042000,-476.06174854,0.00019988,2]
[426152890,1782183042000,-392.70067292,0.00019988,2]
[426152881,1782183042000,-307.84619918,0.00019988,2]
[426152897,1782183042000,-1289.17,0.0002,2]
[426152893,1782183042000,-369.94533334,0.00019988,2]
[426152894,1782183042000,-328.30973188,0.00019988,2]
[426152898,1782183042000,-2490.55532476,0.00020101,2]
[426152900,1782183042000,-1289.17,0.00020273,2]
[426152901,1782183042000,-864.0,0.00020285,2]
[426152896,1782183042000,-758.07,0.0002,2]
[426152895,1782183042000,-300.0,0.0002,4]
[426152899,1782183042000,-758.07,0.00020273,2]
[426152902,1782183042000,-380.67943786,0.0002033,2]
[426152882,1782183042000,-330.01063366,0.00019988,2]
[426152905,1782183042000,-760.19209636,0.0002033,2]
[426152892,1782183042000,-329.77044053,0.00019988,2]
[426152880,1782183042000,-354.66232674,0.00019988,2]
[426152866,1782183042000,-349.36331809,0.00019985,2]
[426152879,1782183042000,-287.53044519,0.00019988,2]
[426152903,1782183042000,-351.87767809,0.0002033,2]
[426152854,1782183042000,-492.46459782,0.00019468,2]
[426152855,1782183042000,-321.00554201,0.00019518,2]
[426152857,1782183042000,-190.80182153,0.00019707,2]
[426152856,1782183042000,-371.57421897,0.00019518,2]
[426152862,1782183042000,-1010.0,0.000198,4]
[426152861,1782183042000,-1010.0,0.000198,3]
[426152863,1782183042000,-190.33971893,0.00019984,2]
[426152865,1782183042000,-570.14407227,0.00019984,2]
[426152864,1782183042000,-175.93883905,0.00019984,2]
[426152859,1782183042000,-1289.17,0.00019726,2]
[426152860,1782183042000,-1010.0,0.000198,2]
[426152867,1782183042000,-333.80376522,0.00019985,2]
[426152868,1782183042000,-362.84513349,0.00019985,2]
[426152869,1782183042000,-229.1930527,0.00019985,2]
[426152870,1782183042000,-282.73620314,0.00019988,2]
[426152871,1782183042000,-285.7575694,0.00019988,2]
[426152876,1782183042000,-328.56150908,0.00019988,2]
[426152875,1782183042000,-296.75084817,0.00019988,2]
[426152874,1782183042000,-574.65950074,0.00019988,2]
[426152872,1782183042000,-463.35431614,0.00019988,2]
[426152877,1782183042000,-353.25630677,0.00019988,2]
[426152873,1782183042000,-531.62110128,0.00019988,2]
[426152878,1782183042000,-295.18822806,0.00019988,2]
[426152904,1782183042000,-245.37813764,0.0002033,2]
[426152858,1782183042000,-758.07,0.00019726,2]
[426152909,1782183042000,-157.1778371,0.00020331,2]
[426152941,1782183042000,-495.01595049,0.00020334,2]
[426152937,1782183042000,-175.03931736,0.00020334,2]
[426152944,1782183042000,-745.37756175,0.00020334,2]
[426152948,1782183042000,-628.11065786,0.00020334,2]
[426152949,1782183042000,-646.86291774,0.00020334,2]
[426152950,1782183042000,-249.25128191,0.00020334,2]
[426152951,1782183042000,-465.84961471,0.00020334,2]
[426152953,1782183042000,-455.61065096,0.00020334,2]
[426152952,1782183042000,-283.18522802,0.00020334,2]
[426152955,1782183042000,-571.5151388,0.00020334,2]
[426152956,1782183042000,-575.06089038,0.00020334,2]
[426152958,1782183042000,-452.41129648,0.00020334,2]
[426152957,1782183042000,-589.05100939,0.00020334,2]
[426152960,1782183042000,-237.48729366,0.00020334,2]
[426152961,1782183042000,-175.71406705,0.00020334,2]
[426152959,1782183042000,-154.90610693,0.00020334,2]
[426152962,1782183042000,-554.91800001,0.00020334,2]
[426152967,1782183042000,-220.04679025,0.000205,2]
[426152965,1782183042000,-160.0,0.00020485,2]
[426152964,1782183042000,-417.15472785,0.00020485,2]
[426152963,1782183042000,-241.68644825,0.00020334,2]
[426152966,1782183042000,-160.0,0.00020485,2]
[426152906,1782183042000,-236.9072892,0.0002033,2]
[426152935,1782183042000,-461.76929877,0.00020334,2]
[426152933,1782183042000,-251.93617385,0.00020334,2]
[426152954,1782183042000,-243.26298857,0.00020334,2]
[426152934,1782183042000,-230.88311373,0.00020334,2]
[426152939,1782183042000,-154.17805601,0.00020334,2]
[426152912,1782183042000,-714.09262281,0.00020331,2]
[426152907,1782183042000,-281.68866192,0.00020331,2]
[426152913,1782183042000,-259.09990177,0.00020334,2]
[426152910,1782183042000,-544.26770024,0.00020331,2]
[426152911,1782183042000,-243.89031232,0.00020331,2]
[426152908,1782183042000,-244.79762836,0.00020331,2]
[426152918,1782183042000,-708.82813504,0.00020334,2]
[426152917,1782183042000,-695.03147422,0.00020334,2]
[426152916,1782183042000,-158.26314467,0.00020334,2]
[426152915,1782183042000,-230.54257198,0.00020334,2]
[426152925,1782183042000,-177.79863107,0.00020334,2]
[426152914,1782183042000,-565.47240628,0.00020334,2]
[426152932,1782183042000,-233.84146884,0.00020334,2]
[426152929,1782183042000,-274.3270702,0.00020334,2]
[426152923,1782183042000,-178.40628183,0.00020334,2]
[426152931,1782183042000,-176.21482694,0.00020334,2]
[426152930,1782183042000,-322.9125027,0.00020334,2]
[426152920,1782183042000,-593.50169635,0.00020334,2]
[426152928,1782183042000,-165.75945009,0.00020334,2]
[426152926,1782183042000,-529.88446015,0.00020334,2]
[426152922,1782183042000,-153.4520006,0.00020334,2]
[426152919,1782183042000,-154.52744003,0.00020334,2]
[426152921,1782183042000,-293.27554341,0.00020334,2]
[426152924,1782183042000,-492.84226363,0.00020334,2]
[426153001,1782183043000,-1093.90232692,0.00021199,2]
[426153006,1782183043000,-252.590178,0.0002143,2]
[426153005,1782183043000,-252.590178,0.0002143,2]
[426153004,1782183043000,-252.590178,0.0002143,2]
[426153003,1782183043000,-1289.17,0.00021369,2]
[426152997,1782183043000,-190.987,0.00020948,2]
[426152998,1782183043000,-758.07,0.00021095,2]
[426152999,1782183043000,-1289.17,0.00021095,2]
[426152994,1782183043000,-160.0,0.00020913,2]
[426153008,1782183043000,-210.0,0.0002143,3]
[426153002,1782183043000,-758.07,0.00021369,2]
[426153010,1782183043000,-210.0,0.0002143,3]
[426153020,1782183043000,-212.05,0.0002143,3]
[426153007,1782183043000,-252.590178,0.0002143,2]
[426153011,1782183043000,-210.0,0.0002143,3]
[426153013,1782183043000,-210.0,0.0002143,3]
[426153014,1782183043000,-210.0,0.0002143,3]
[426153012,1782183043000,-210.0,0.0002143,3]
[426153015,1782183043000,-210.0,0.0002143,3]
[426153018,1782183043000,-210.0,0.0002143,3]
[426153017,1782183043000,-210.0,0.0002143,3]
[426153019,1782183043000,-210.0,0.0002143,3]
[426153016,1782183043000,-210.0,0.0002143,3]
[426153021,1782183043000,-160.0,0.00021445,2]
[426152996,1782183043000,-691.984139,0.00020913,2]
[426153009,1782183043000,-210.0,0.0002143,3]
[426153000,1782183043000,-1063.24220255,0.00021199,2]
[426152968,1782183043000,-222.5668163,0.000205,2]
[426152993,1782183043000,-290.097086,0.00020913,2]
[426152969,1782183043000,-758.07,0.00020547,2]
[426153023,1782183043000,-4373.931107,0.00021445,2]
[426152970,1782183043000,-1289.17,0.00020547,2]
[426152972,1782183043000,-886.03516879,0.0002068,2]
[426152971,1782183043000,-243.23888,0.00020548,2]
[426152973,1782183043000,-911.58527243,0.0002068,2]
[426152974,1782183043000,-758.07,0.00020821,2]
[426152975,1782183043000,-1289.17,0.00020821,2]
[426152976,1782183043000,-274.014857,0.00020913,2]
[426152977,1782183043000,-274.014857,0.00020913,2]
[426152979,1782183043000,-274.014857,0.00020913,2]
[426152978,1782183043000,-274.014857,0.00020913,2]
[426152980,1782183043000,-271.60857,0.00020913,2]
[426152981,1782183043000,-160.0,0.00020913,2]
[426152983,1782183043000,-10494.164538,0.00020913,2]
[426152982,1782183043000,-5327.082269,0.00020913,2]
[426152985,1782183043000,-2730.655406,0.00020913,2]
[426152984,1782183043000,-160.0,0.00020913,2]
[426152987,1782183043000,-160.0,0.00020913,2]
[426152986,1782183043000,-5301.310812,0.00020913,2]
[426152988,1782183043000,-289.836821,0.00020913,2]
[426152990,1782183043000,-160.0,0.00020913,2]
[426152989,1782183043000,-419.673643,0.00020913,2]
[426152991,1782183043000,-260.343186,0.00020913,2]
[426152992,1782183043000,-360.686373,0.00020913,2]
[426152995,1782183043000,-425.992069,0.00020913,2]
[426153024,1782183043000,-151.0,0.000216,3]
[426153022,1782183043000,-2266.965553,0.00021445,2]
[426153026,1782183043000,-182.97149504,0.00021627,2]
[426153058,1782183043000,-160.0,0.00022,30]
[426153056,1782183043000,-629.2559908,0.00022,2]
[426153057,1782183043000,-8285.0,0.00022,30]
[426153059,1782183043000,-417.15472785,0.00022,30]
[426153062,1782183043000,-252.590178,0.00022,2]
[426153061,1782183043000,-160.0,0.00022,30]
[426153060,1782183043000,-417.15472785,0.00022,30]
[426153064,1782183043000,-252.590178,0.00022,2]
[426153069,1782183043000,-274.014857,0.00022,2]
[426153065,1782183043000,-252.590178,0.00022,2]
[426153067,1782183043000,-274.014857,0.00022,2]
[426153071,1782183043000,-499.982154,0.00022,2]